fUST/lending_fUST_20250120
["ID","MTS","AMOUNT","RATE_DAILY","PERIOD"]
[349588981,1737316233458,-500.0,0.00022054,3]
[349588983,1737316233468,-500.0,0.00022054,3]
[349588985,1737316233478,-500.0,0.00022054,3]
[349588987,1737316233488,-1687.45,0.00022054,3]
[349588989,1737316233498,-500.0,0.00022054,3]
[349588991,1737316233508,-500.0,0.00022054,3]
[349588993,1737316233517,-545.93,0.00022054,3]
[349588995,1737316233528,-500.0,0.00022054,3]
[349588997,1737316233538,-500.0,0.00022054,3]
[349588999,1737316233547,-500.0,0.00022054,3]
[349589001,1737316233557,-500.0,0.00022054,3]
[349589003,1737316233567,-500.0,0.00022054,3]
[349589005,1737316233577,-500.0,0.00022054,3]
[349589007,1737316233586,-500.0,0.00022054,3]
[349589009,1737316233595,-500.0,0.00022054,3]
[349589011,1737316233605,-2937.12,0.00022054,3]
[349589013,1737316233615,-500.0,0.00022054,3]
[349589015,1737316233625,-1388.96,0.00022054,3]
[349589017,1737316233634,-500.0,0.0002219,3]
[349589019,1737316233644,-500.0,0.0002219,3]
[349589021,1737316233654,-500.0,0.00022191,3]
[349589023,1737316233663,-500.0,0.00022191,3]
[349589025,1737316233673,-500.0,0.00022191,2]
[349589027,1737316233683,-1175.7,0.00022191,3]
[349589029,1737316233694,-500.0,0.00022191,3]
[349589031,1737316233703,-4306.44,0.00022191,3]
[349589033,1737316233713,-500.0,0.00022191,3]
[349589035,1737316233723,-5035.92,0.00022191,3]
[349589037,1737316233736,-500.0,0.00022191,3]
[349589039,1737316233746,-500.0,0.00022191,3]
[349589041,1737316233756,-500.0,0.00022191,3]
[349589043,1737316233765,-500.0,0.00022191,3]
[349589045,1737316233775,-500.0,0.00022191,3]
[349589047,1737316233783,-500.0,0.00022191,3]
[349589049,1737316233793,-500.0,0.00022191,3]
[349589050,1737316233802,-500.0,0.00022191,3]
[349589053,1737316233812,-1687.45,0.00022191,3]
[349589055,1737316233821,-500.0,0.00022191,3]
[349589056,1737316233831,-500.0,0.00022191,3]
[349589059,1737316233841,-545.93,0.00022191,3]
[349589061,1737316233851,-500.0,0.00022191,3]
[349589063,1737316233861,-500.0,0.00022191,3]
[349589065,1737316233871,-500.0,0.00022191,3]
[349589067,1737316233880,-500.0,0.00022191,3]
[349589069,1737316233890,-500.0,0.00022191,3]
[349589071,1737316233900,-500.0,0.00022191,3]
[349589073,1737316233909,-500.0,0.00022191,3]
[349589075,1737316233919,-500.0,0.00022191,3]
[349589077,1737316233929,-2937.12,0.00022191,3]
[349589079,1737316233938,-500.0,0.00022191,3]
[349589081,1737316233948,-1388.96,0.00022191,3]
[349589083,1737316233957,-260.85948244,0.00022214,2]
[349589085,1737316233967,-500.0,0.00022325,2]
[349589087,1737316233976,-500.0,0.00022325,2]
[349589089,1737316233986,-219.72425494,0.00022325,2]
[349589091,1737316233997,-500.0,0.00022325,2]
[349589092,1737316234013,-270.0,0.00022325,2]
[349589095,1737316234023,-500.0,0.00022325,2]
[349589096,1737316234034,-500.0,0.00022325,2]
[349589099,1737316234044,-500.0,0.00022325,2]
[349589100,1737316234054,-500.0,0.00022325,2]
[349589103,1737316234065,-500.0,0.00022325,2]
[349589105,1737316234075,-482.76694128,0.00022325,2]
[349589107,1737316234086,-500.0,0.00022325,2]
[349589109,1737316234095,-500.0,0.00022325,2]
[349589111,1737316234105,-500.0,0.00022325,2]
[349589113,1737316234115,-500.0,0.00022325,2]
[349589115,1737316234124,-500.0,0.00022325,2]
[349589117,1737316234135,-500.0,0.00022325,2]
[349589119,1737316234144,-500.0,0.00022325,2]
[349589121,1737316234154,-500.0,0.00022325,2]
[349589123,1737316234163,-500.0,0.00022325,2]
[349589125,1737316234173,-500.0,0.00022325,2]
[349589127,1737316234183,-500.0,0.00022325,2]
[349589129,1737316234193,-500.0,0.00022325,2]
[349589130,1737316234203,-500.0,0.00022325,2]
[349589132,1737316234213,-500.0,0.00022325,2]
[349589134,1737316234224,-500.0,0.00022325,2]
[349589135,1737316234234,-500.0,0.00022325,2]
[349589136,1737316234244,-500.0,0.00022325,2]
[349589137,1737316234255,-354.44895187,0.00022325,2]
[349589138,1737316234266,-566.715,0.00022325,2]
[349589139,1737316234276,-500.0,0.00022325,2]
[349589140,1737316234287,-500.0,0.00022325,2]
[349589141,1737316234297,-500.0,0.00022325,2]
[349589142,1737316234308,-451.96175631,0.00022325,2]
[349589143,1737316234318,-500.0,0.00022325,2]
[349589144,1737316234329,-427.02093967,0.00022325,2]
[349589145,1737316234339,-381.02815588,0.00022325,2]
[349589146,1737316234350,-500.0,0.00022325,2]
[349589147,1737316234360,-500.0,0.00022325,2]
[349589148,1737316234370,-500.0,0.00022325,2]
[349589149,1737316234379,-500.0,0.00022325,2]
[349589150,1737316234389,-500.0,0.00022325,2]
[349589151,1737316234400,-500.0,0.00022325,2]
[349589152,1737316234411,-500.0,0.00022325,2]
[349589153,1737316234421,-500.0,0.00022325,2]
[349589154,1737316234432,-500.0,0.00022327,3]
[349589155,1737316234442,-500.0,0.00022328,3]
[349589156,1737316234452,-500.0,0.00022328,3]
[349589157,1737316234461,-500.0,0.00022328,2]
[349589158,1737316234471,-1175.7,0.00022328,3]
[349589159,1737316234480,-500.0,0.00022328,3]
[349589160,1737316234490,-4306.44,0.00022328,3]
[349589161,1737316234500,-500.0,0.00022328,3]
[349589162,1737316234510,-5035.92,0.00022328,3]
[349589163,1737316234519,-500.0,0.00022328,3]
[349589164,1737316234529,-500.0,0.00022328,3]
[349589165,1737316234538,-500.0,0.00022328,3]
[349589166,1737316234548,-500.0,0.00022328,3]
[349589167,1737316234557,-562.17433345,0.00022328,3]
[349589168,1737316234568,-500.0,0.00022328,3]
[349589169,1737316234577,-500.0,0.00022328,3]
[349589170,1737316234587,-500.0,0.00022328,3]
[349589171,1737316234597,-1687.45,0.00022328,3]
[349589172,1737316234606,-500.0,0.00022328,3]
[349589173,1737316234616,-500.0,0.00022328,3]
[349589174,1737316234626,-545.93,0.00022328,3]
[349589175,1737316234636,-500.0,0.00022328,3]
[349589176,1737316234645,-500.0,0.00022328,3]
[349589177,1737316234655,-500.0,0.00022328,3]
[349589178,1737316234665,-500.0,0.00022328,3]
[349589179,1737316234675,-500.0,0.00022328,3]
[349589180,1737316234685,-500.0,0.00022328,3]
[349589181,1737316234694,-500.0,0.00022328,3]
[349589182,1737316234704,-500.0,0.00022328,3]
[349589183,1737316234713,-2937.12,0.00022328,3]
[349589184,1737316234722,-500.0,0.00022328,3]
[349589185,1737316234731,-1388.96,0.00022328,3]
[349589186,1737316234741,-500.0,0.00022413,3]
[349589187,1737316234751,-500.0,0.00022413,3]
[349589188,1737316234760,-500.0,0.00022413,3]
[349589189,1737316234770,-500.0,0.00022413,3]
[349589190,1737316234780,-500.0,0.00022413,3]
[349589191,1737316234789,-500.0,0.00022464,3]
[349589192,1737316234799,-500.0,0.00022464,3]
[349589193,1737316234808,-500.0,0.00022465,3]
[349589194,1737316234818,-333.35891581,0.00022465,3]
[349589195,1737316234827,-500.0,0.00022465,2]
[349589196,1737316234836,-1175.7,0.00022465,3]
[349589197,1737316234846,-500.0,0.00022465,3]
[349589198,1737316234855,-4306.44,0.00022465,3]
[349589199,1737316234865,-500.0,0.00022465,3]
[349589200,1737316234874,-5035.92,0.00022465,3]
[349589201,1737316234884,-500.0,0.00022465,3]
[349589202,1737316234896,-500.0,0.00022465,3]
[349589203,1737316234906,-500.0,0.00022465,3]
[349589204,1737316234915,-500.0,0.00022465,3]
[349589205,1737316234924,-500.0,0.00022465,3]
[349589206,1737316234934,-500.0,0.00022465,3]
[349589207,1737316234943,-500.0,0.00022465,3]
[349589208,1737316234952,-1687.45,0.00022465,3]
[349589209,1737316234961,-500.0,0.00022465,3]
[349589210,1737316234970,-500.0,0.00022465,3]
[349589211,1737316234980,-545.93,0.00022465,3]
[349589212,1737316234989,-500.0,0.00022465,3]
[349589213,1737316234999,-500.0,0.00022465,3]
[349589214,1737316235012,-500.0,0.00022465,3]
[349589215,1737316235022,-500.0,0.00022465,3]
[349589216,1737316235032,-500.0,0.00022465,3]
[349589217,1737316235043,-500.0,0.00022465,3]
[349589218,1737316235052,-500.0,0.00022465,3]
[349589219,1737316235062,-287.60996412,0.00022465,3]
[349589220,1737316235072,-2937.12,0.00022465,3]
[349589221,1737316235083,-565.1,0.00022465,3]
[349589222,1737316235093,-1388.96,0.00022465,3]
[349589223,1737316235102,-1487.92,0.000225,2]
[349589224,1737316235111,-300.0,0.000225,10]
[349589225,1737316235120,-500.0,0.00022601,3]
[349589226,1737316235130,-268.93008301,0.00022602,3]
[349589227,1737316235139,-500.0,0.00022602,2]
[349589228,1737316235149,-1175.7,0.00022602,3]
[349589229,1737316235159,-500.0,0.00022602,3]
[349589230,1737316235169,-4306.44,0.00022602,3]
[349589231,1737316235178,-500.0,0.00022602,3]
[349589232,1737316235187,-5035.92,0.00022602,3]
[349589233,1737316235197,-500.0,0.00022602,3]
[349589234,1737316235206,-500.0,0.00022602,3]
[349589235,1737316235215,-374.38553696,0.00022602,3]
[349589236,1737316235225,-314.01041716,0.00022602,3]
[349589237,1737316235234,-500.0,0.00022602,3]
[349589238,1737316235243,-500.0,0.00022602,3]
[349589239,1737316235253,-500.0,0.00022602,3]
[349589240,1737316235263,-1687.45,0.00022602,3]
[349589241,1737316235272,-500.0,0.00022602,3]
[349589242,1737316235281,-500.0,0.00022602,3]
[349589243,1737316235291,-545.93,0.00022602,3]
[349589244,1737316235300,-500.0,0.00022602,3]
[349589245,1737316235310,-500.0,0.00022602,3]
[349589246,1737316235320,-500.0,0.00022602,3]
[349589247,1737316235329,-500.0,0.00022602,3]
[349589248,1737316235338,-500.0,0.00022602,3]
[349589249,1737316235347,-500.0,0.00022602,3]
[349589250,1737316235357,-500.0,0.00022602,3]
[349589251,1737316235366,-2937.12,0.00022602,3]
[349589252,1737316235375,-1388.96,0.00022602,3]
[349589253,1737316235385,-260.85948244,0.00022639,2]
[349589254,1737316235394,-304.06,0.00022737,3]
[349589255,1737316235404,-500.0,0.00022739,2]
[349589256,1737316235413,-1175.7,0.00022739,3]
[349589257,1737316235422,-500.0,0.00022739,3]
[349589258,1737316235431,-4306.44,0.00022739,3]
[349589259,1737316235440,-500.0,0.00022739,3]
[349589260,1737316235450,-5035.92,0.00022739,3]
[349589261,1737316235459,-500.0,0.00022739,3]
[349589262,1737316235469,-500.0,0.00022739,3]
[349589263,1737316235478,-500.0,0.00022739,3]
[349589264,1737316235488,-500.0,0.00022739,3]
[349589265,1737316235497,-500.0,0.00022739,3]
[349589266,1737316235508,-1687.45,0.00022739,3]
[349589267,1737316235517,-500.0,0.00022739,3]
[349589268,1737316235527,-500.0,0.00022739,3]
[349589269,1737316235536,-545.93,0.00022739,3]
[349589270,1737316235545,-500.0,0.00022739,3]
[349589271,1737316235554,-500.0,0.00022739,3]
[349589272,1737316235563,-500.0,0.00022739,3]
[349589273,1737316235572,-500.0,0.00022739,3]
[349589274,1737316235582,-500.0,0.00022739,3]
[349589275,1737316235591,-500.0,0.00022739,3]
[349589276,1737316235600,-500.0,0.00022739,3]
[349589277,1737316235610,-2937.12,0.00022739,3]
[349589278,1737316235619,-1388.96,0.00022739,3]
[349589279,1737316235628,-10000.0,0.000228,2]
[349589280,1737316235637,-435.63,0.00022876,2]
[349589281,1737316235646,-1175.7,0.00022876,3]
[349589282,1737316235656,-500.0,0.00022876,3]
[349589283,1737316235665,-4306.44,0.00022876,3]
[349589284,1737316235674,-500.0,0.00022876,3]
[349589285,1737316235683,-5035.92,0.00022876,3]
[349589286,1737316235693,-500.0,0.00022876,3]
[349589287,1737316235703,-500.0,0.00022876,3]
[349589288,1737316235712,-500.0,0.00022876,3]
[349589289,1737316235721,-500.0,0.00022876,3]
[349589290,1737316235730,-500.0,0.00022876,3]
[349589291,1737316235740,-1687.45,0.00022876,3]
[349589292,1737316235749,-500.0,0.00022876,3]
[349589293,1737316235759,-500.0,0.00022876,3]
[349589294,1737316235768,-545.93,0.00022876,3]
[349589295,1737316235777,-500.0,0.00022876,3]
[349589296,1737316235787,-500.0,0.00022876,3]
[349589297,1737316235796,-500.0,0.00022876,3]
[349589298,1737316235806,-500.0,0.00022876,3]
[349589299,1737316235817,-500.0,0.00022876,3]
[349589300,1737316235826,-500.0,0.00022876,3]
[349589301,1737316235836,-500.0,0.00022876,3]
[349589302,1737316235845,-2937.12,0.00022876,3]
[349589303,1737316235854,-1388.96,0.00022876,3]
[349589304,1737316235863,-536.0,0.00022882,2]
[349589305,1737316235872,-2063.0,0.00022882,2]
[349589306,1737316235882,-2308.0,0.00022882,2]
[349589307,1737316235891,-395.0,0.00022882,2]
[349589308,1737316235901,-419.786,0.0002297,2]
[349589309,1737316235911,-7438.69753278,0.00023,2]
[349589310,1737316235920,-1000.0,0.00023,23]
[349589311,1737316235930,-500.0,0.00023,2]
[349589312,1737316236028,-7438.69753278,0.00023,3]
[349589313,1737316236039,-1175.7,0.00023013,3]
[349589314,1737316236050,-638.94402606,0.00023013,3]
[349589315,1737316236060,-4306.44,0.00023013,3]
[349589316,1737316236068,-500.0,0.00023013,3]
[349589317,1737316236078,-5035.92,0.00023013,3]
[349589318,1737316236089,-500.0,0.00023013,3]
[349589319,1737316236099,-500.0,0.00023013,3]
[349589320,1737316236109,-500.0,0.00023013,3]
[349589321,1737316236119,-500.0,0.00023013,3]
[349589322,1737316236128,-500.0,0.00023013,3]
[349589323,1737316236138,-1687.45,0.00023013,3]
[349589324,1737316236147,-500.0,0.00023013,3]
[349589325,1737316236156,-500.0,0.00023013,3]
[349589326,1737316236166,-545.93,0.00023013,3]
[349589327,1737316236175,-500.0,0.00023013,3]
[349589328,1737316236185,-500.0,0.00023013,3]
[349589329,1737316236195,-382.37,0.00023013,3]
[349589330,1737316236204,-500.0,0.00023013,3]
[349589331,1737316236214,-500.0,0.00023013,3]
[349589332,1737316236224,-500.0,0.00023013,3]
[349589333,1737316236234,-240.19644111,0.00023013,3]
[349589334,1737316236243,-2937.12,0.00023013,3]
[349589335,1737316236254,-1388.96,0.00023013,3]
[349589336,1737316236263,-1175.7,0.0002315,3]
[349589337,1737316236273,-4306.44,0.0002315,3]
[349589338,1737316236283,-500.0,0.0002315,3]
[349589339,1737316236292,-5035.92,0.0002315,3]
[349589340,1737316236302,-500.0,0.0002315,3]
[349589341,1737316236311,-386.21613891,0.0002315,3]
[349589342,1737316236321,-500.0,0.0002315,3]
[349589343,1737316236330,-500.0,0.0002315,3]
[349589344,1737316236339,-500.0,0.0002315,3]
[349589345,1737316236348,-1687.45,0.0002315,3]
[349589346,1737316236357,-500.0,0.0002315,3]
[349589347,1737316236367,-517.22365004,0.0002315,3]
[349589348,1737316236377,-545.93,0.0002315,3]
[349589349,1737316236387,-500.0,0.0002315,3]
[349589350,1737316236396,-500.0,0.0002315,3]
[349589351,1737316236405,-500.0,0.0002315,3]
[349589352,1737316236415,-500.0,0.0002315,3]
[349589353,1737316236425,-500.0,0.0002315,3]
[349589354,1737316236434,-2937.12,0.0002315,3]
[349589355,1737316236444,-1388.96,0.0002315,3]
[349589356,1737316236453,-500.0,0.00023199,2]
[349589357,1737316236462,-500.0,0.00023199,2]
[349589358,1737316236471,-500.0,0.00023199,2]
[349589359,1737316236480,-333.09084587,0.00023199,2]
[349589360,1737316236489,-50468.16797957,0.000232,2]
[349589361,1737316236498,-1175.7,0.00023287,3]
[349589362,1737316236507,-4306.44,0.00023287,3]
[349589363,1737316236517,-500.0,0.00023287,3]
[349589364,1737316236526,-5035.92,0.00023287,3]
[349589365,1737316236536,-500.0,0.00023287,3]
[349589366,1737316236545,-500.0,0.00023287,3]
[349589367,1737316236554,-500.0,0.00023287,3]
[349589368,1737316236563,-500.0,0.00023287,3]
[349589369,1737316236573,-1687.45,0.00023287,3]
[349589370,1737316236583,-500.0,0.00023287,3]
[349589371,1737316236592,-545.93,0.00023287,3]
[349589372,1737316236602,-500.0,0.00023287,3]
[349589373,1737316236612,-500.0,0.00023287,3]
[349589374,1737316236622,-500.0,0.00023287,3]
[349589375,1737316236632,-523.23442477,0.00023287,3]
[349589376,1737316236642,-254.03,0.00023287,3]
[349589377,1737316236651,-2937.12,0.00023287,3]
[349589378,1737316236661,-1388.96,0.00023287,3]
[349589379,1737316236670,-587.0,0.00023364,2]
[349589380,1737316236680,-1175.7,0.00023424,3]
[349589381,1737316236689,-4306.44,0.00023424,3]
[349589382,1737316236699,-500.0,0.00023424,3]
[349589383,1737316236708,-5035.92,0.00023424,3]
[349589384,1737316236718,-500.0,0.00023424,3]
[349589385,1737316236728,-340.56724614,0.00023424,3]
[349589386,1737316236737,-500.0,0.00023424,3]
[349589387,1737316236746,-500.0,0.00023424,3]
[349589388,1737316236757,-1687.45,0.00023424,3]
[349589389,1737316236767,-500.0,0.00023424,3]
[349589390,1737316236776,-545.93,0.00023424,3]
[349589391,1737316236785,-500.0,0.00023424,3]
[349589392,1737316236795,-500.0,0.00023424,3]
[349589393,1737316236804,-500.0,0.00023424,3]
[349589394,1737316236813,-2937.12,0.00023424,3]
[349589395,1737316236823,-1388.96,0.00023424,3]
[349589396,1737316236832,-1200.0,0.00023457,2]
[349589397,1737316236842,-664.226,0.00023457,2]
[349589398,1737316236851,-4183.0,0.00023477,7]
[349589399,1737316236860,-500.0,0.000235,2]
[349589400,1737316236869,-500.0,0.000235,7]
[349589401,1737316236878,-1175.7,0.00023561,3]
[349589402,1737316236888,-4306.44,0.00023561,3]
[349589403,1737316236898,-500.0,0.00023561,3]
[349589404,1737316236907,-5035.92,0.00023561,3]
[349589405,1737316236917,-500.0,0.00023561,3]
[349589406,1737316236926,-500.0,0.00023561,3]
[349589407,1737316236936,-500.0,0.00023561,3]
[349589408,1737316236946,-1687.45,0.00023561,3]
[349589409,1737316236955,-500.0,0.00023561,3]
[349589410,1737316236964,-545.93,0.00023561,3]
[349589411,1737316236974,-500.0,0.00023561,3]
[349589412,1737316236983,-500.0,0.00023561,3]
[349589413,1737316236992,-195.59552643,0.00023561,3]
[349589414,1737316237003,-2937.12,0.00023561,3]
[349589415,1737316237016,-1388.96,0.00023561,3]
[349589416,1737316237026,-1175.7,0.00023698,3]
[349589417,1737316237035,-4306.44,0.00023698,3]
[349589418,1737316237044,-500.0,0.00023698,3]
[349589419,1737316237055,-5035.92,0.00023698,3]
[349589420,1737316237065,-500.0,0.00023698,3]
[349589421,1737316237074,-500.0,0.00023698,3]
[349589422,1737316237084,-500.0,0.00023698,3]
[349589423,1737316237094,-1687.45,0.00023698,3]
[349589424,1737316237103,-500.0,0.00023698,3]
[349589425,1737316237112,-545.93,0.00023698,3]
[349589426,1737316237122,-243.72,0.00023698,3]
[349589427,1737316237132,-500.0,0.00023698,3]
[349589428,1737316237141,-2937.12,0.00023698,3]
[349589429,1737316237150,-1388.96,0.00023698,3]
[349589430,1737316237160,-151.0,0.000238,9]
[349589431,1737316237170,-1175.7,0.00023835,3]
[349589432,1737316237179,-4306.44,0.00023835,3]
[349589433,1737316237189,-500.0,0.00023835,3]
[349589434,1737316237199,-5035.92,0.00023835,3]
[349589435,1737316237210,-500.0,0.00023835,3]
[349589436,1737316237219,-500.0,0.00023835,3]
[349589437,1737316237229,-500.0,0.00023835,3]
[349589438,1737316237239,-1687.45,0.00023835,3]
[349589439,1737316237248,-500.0,0.00023835,3]
[349589440,1737316237259,-545.93,0.00023835,3]
[349589441,1737316237268,-500.0,0.00023835,3]
[349589442,1737316237278,-2937.12,0.00023835,3]
[349589443,1737316237287,-1388.96,0.00023835,3]
[349589444,1737316237297,-5950.0,0.000239,2]
[349589445,1737316237306,-6348.23067313,0.00023931,2]
[349589446,1737316237315,-1175.7,0.00023972,3]
[349589447,1737316237324,-4306.44,0.00023972,3]
[349589448,1737316237334,-500.0,0.00023972,3]
[349589449,1737316237344,-5035.92,0.00023972,3]
[349589450,1737316237353,-500.0,0.00023972,3]
[349589451,1737316237363,-500.0,0.00023972,3]
[349589452,1737316237372,-500.0,0.00023972,3]
[349589453,1737316237382,-1687.45,0.00023972,3]
[349589454,1737316237391,-500.0,0.00023972,3]
[349589455,1737316237400,-545.93,0.00023972,3]
[349589456,1737316237410,-500.0,0.00023972,3]
[349589458,1737316237419,-2937.12,0.00023972,3]
[349589459,1737316237429,-1388.96,0.00023972,3]
[349589460,1737316237439,-155529.7612783,0.00024,10]
[349589461,1737316237448,-1000.0,0.00024,24]
[349589462,1737316237457,-500.0,0.00024,2]
[349589463,1737316237466,-300.0,0.00024,11]
[349589464,1737316237475,-151.0,0.00024,10]
[349589465,1737316237485,-153.08,0.00024,31]
[349589467,1737316237494,-153.08,0.00024,31]
[349589468,1737316237504,-153.08,0.00024,31]
[349589470,1737316237513,-153.08,0.00024,31]
[349589472,1737316237522,-153.08,0.00024,31]
[349589473,1737316237531,-153.08,0.00024,31]
[349589476,1737316237541,-153.08,0.00024,31]
[349589478,1737316237550,-7438.69753278,0.00024,10]
[349589481,1737316237559,-151.0,0.00024024,7]
[349589483,1737316237568,-540.20309195,0.00024075,2]
[349589485,1737316237577,-1664.0,0.000241,2]
[349589487,1737316237587,-2000.0,0.000241,2]
[349589488,1737316237596,-1175.7,0.00024109,3]
[349589489,1737316237605,-4306.44,0.00024109,3]
[349589490,1737316237614,-500.0,0.00024109,3]
[349589492,1737316237624,-5035.92,0.00024109,3]
[349589493,1737316237635,-500.0,0.00024109,3]
[349589494,1737316237644,-500.0,0.00024109,3]
[349589495,1737316237654,-500.0,0.00024109,3]
[349589496,1737316237663,-1687.45,0.00024109,3]
[349589498,1737316237673,-500.0,0.00024109,3]
[349589500,1737316237682,-545.93,0.00024109,3]
[349589502,1737316237691,-500.0,0.00024109,3]
[349589503,1737316237700,-2937.12,0.00024109,3]
[349589505,1737316237710,-1388.96,0.00024109,3]
[349589507,1737316237719,-500.0,0.00024173,2]
[349589509,1737316237728,-500.0,0.00024173,2]
[349589511,1737316237738,-500.0,0.00024173,2]
[349589513,1737316237747,-151.0,0.00024173,7]
[349589515,1737316237757,-151.0,0.00024173,7]
[349589517,1737316237766,-151.0,0.00024173,7]
[349589519,1737316237775,-246.465667,0.00024173,7]
[349589521,1737316237784,-151.0,0.00024175,7]
[349589523,1737316237794,-278.985377,0.00024175,7]
[349589524,1737316237803,-151.0,0.00024175,7]
[349589525,1737316237812,-151.0,0.00024175,7]
[349589526,1737316237821,-151.0,0.00024175,7]
[349589527,1737316237830,-154.572393,0.00024175,7]
[349589528,1737316237839,-220.574396,0.00024175,7]
[349589529,1737316237848,-220.574396,0.00024175,7]
[349589530,1737316237857,-220.574396,0.00024175,7]
[349589532,1737316237867,-220.574396,0.00024175,7]
[349589533,1737316237876,-220.574396,0.00024175,7]
[349589535,1737316237885,-220.574396,0.00024175,7]
[349589536,1737316237894,-220.574396,0.00024175,7]
[349589537,1737316237903,-220.574396,0.00024175,7]
[349589538,1737316237913,-220.574396,0.00024175,7]
[349589539,1737316237922,-220.574396,0.00024175,7]
[349589540,1737316237931,-220.574396,0.00024175,7]
[349589541,1737316237940,-220.574396,0.00024175,7]
[349589542,1737316237952,-220.574396,0.00024175,7]
[349589543,1737316237961,-220.574396,0.00024175,7]
[349589544,1737316237970,-220.574396,0.00024175,7]
[349589545,1737316237980,-220.574396,0.00024175,7]
[349589546,1737316237989,-220.574396,0.00024175,7]
[349589547,1737316237999,-220.574396,0.00024175,7]
[349589548,1737316238013,-220.574396,0.00024175,7]
[349589549,1737316238022,-220.57439,0.00024175,7]
[349589550,1737316238032,-151.0,0.00024175,7]
[349589551,1737316238042,-151.400172,0.00024175,7]
[349589552,1737316238052,-151.0,0.00024175,7]
[349589553,1737316238062,-247.902006,0.00024175,7]
[349589554,1737316238071,-151.0,0.00024175,7]
[349589555,1737316238081,-151.0,0.00024175,7]
[349589556,1737316238091,-151.0,0.00024175,7]
[349589557,1737316238101,-151.0,0.00024175,7]
[349589558,1737316238110,-151.0,0.00024175,7]
[349589559,1737316238119,-151.0,0.00024175,7]
[349589560,1737316238128,-223.081584,0.00024175,7]
[349589561,1737316238137,-151.0,0.00024175,7]
[349589562,1737316238147,-151.0,0.00024175,7]
[349589563,1737316238156,-151.0,0.00024175,7]
[349589564,1737316238165,-151.0,0.00024175,7]
[349589565,1737316238175,-151.0,0.00024175,7]
[349589566,1737316238184,-151.0,0.00024175,7]
[349589567,1737316238194,-151.0,0.00024175,7]
[349589568,1737316238203,-151.0,0.00024175,7]
[349589569,1737316238212,-165.347969,0.00024175,7]
[349589570,1737316238222,-151.0,0.00024175,7]
[349589571,1737316238231,-151.0,0.00024175,7]
[349589572,1737316238241,-151.0,0.00024175,7]
[349589573,1737316238251,-151.0,0.00024175,7]
[349589574,1737316238261,-151.0,0.00024175,7]
[349589575,1737316238271,-151.0,0.00024175,7]
[349589576,1737316238280,-151.0,0.00024175,7]
[349589577,1737316238290,-151.0,0.00024175,7]
[349589578,1737316238299,-151.0,0.00024175,7]
[349589579,1737316238308,-151.0,0.00024175,7]
[349589580,1737316238318,-151.0,0.00024175,7]
[349589581,1737316238327,-151.0,0.00024175,7]
[349589582,1737316238337,-216.170211,0.00024175,7]
[349589583,1737316238346,-151.0,0.00024175,7]
[349589584,1737316238355,-151.0,0.00024175,7]